[Event "POR-ch Women 2018"]
[Site "Braga"]
[Date "2018.09.05"]
[Round "1"]
[White "Silva, Mariana"]
[Black "Soares, Sara"]
[Result "1-0"]
[ECO "C50"]
[WhiteElo "1924"]
[BlackElo "1431"]
[Annotator "NA RC"]
[PlyCount "133"]
[EventDate "2018.09.02"]
[EventType "tourn"]
[EventCountry "POR"]
[SourceTitle "playchess.com"]
[Source "ChessBase"]
[SourceQuality "1"]
[TimeControl "40/5400+30:1800+30"]

1. e4 e5 2. Nf3 Nc6 3. Bc4 Bc5 4. O-O Nf6 5. d3 d6 6. a4 a6 7. Bg5 Bg4 8. Nbd2 h6 9. Be3 Bxe3 10. fxe3 O-O 11. Qe1 Qd7 12. Nh4 Ne7 13. d4 Rad8 14. a5 Rfe8 15. Bb3 Nc6 16. h3 Bh5 17. Qg3 Kh7 18. Nf5 Bg6 19. Qh4 Bxf5 20. Rxf5 exd4 21. Rxf6 gxf6 22. Qxf6 Rf8 23. exd4 Qe7 24. Qf5+ Kg7 25. Nf3 Qf6 26. Qg4+ Qg6 27. Qh4 Rde8 28. Re1 Qf6 29. Qg3+ Qg6 30. Qf4 Qf6 31. Qd2 Rg8 32. Rf1 Qg6 33. Nh4 Qg5 34. Rxf7+ Kh8 35. Qxg5 hxg5 36. Nf5 Rgf8 37. Rxc7 Rxe4 38. Nxd6 Re7 39. Rxe7 Nxe7 40. Nxb7 Nc6 41. d5 Nd4 42. Ba4 Rb8 43. Bc6 Kg7 44. c3 Nxc6 45. dxc6 Kf6 46. Kf2 Rc8 47. Nc5 Rxc6 48. b4 Kf5 49. Kf3 Kf6 50. Ke4 Rd6 51. g3 Kf7 52. h4 gxh4 53. gxh4 Rh6 54. Kd5 Rxh4 55. Nxa6 Rh5+ 56. Kc4 Ke7 57. Nc5 Kd6 58. a6 Kc7 59. a7 Rh8 60. Kb5 Ra8 61. Ka6 Kc6 62. c4 Kc7 63. b5 Kc8 64. b6 Kd8 65. b7 Rxa7+ 66. Kxa7 Kc7 67. b8=Q+ 1-0

[Event "POR-ch Women 2018"]
[Site "Braga"]
[Date "2018.09.05"]
[Round "1"]
[White "Pipiras, Filipa"]
[Black "Areal, Beatriz"]
[Result "1-0"]
[ECO "D35"]
[WhiteElo "1803"]
[BlackElo "1051"]
[Annotator "NA RC"]
[PlyCount "61"]
[EventDate "2018.09.02"]
[EventType "tourn"]
[EventCountry "POR"]
[SourceTitle "playchess.com"]
[Source "ChessBase"]
[SourceQuality "1"]
[TimeControl "40/5400+30:1800+30"]

1. d4 d5 2. c4 e6 3. Nc3 Nf6 4. cxd5 exd5 5. Bg5 Be7 6. e3 h6 7. Bh4 O-O 8. Bd3 Nbd7 9. Nge2 Re8 10. O-O Nf8 11. Qc2 c6 12. Rad1 Be6 13. f3 Qc7 14. Bg3 Bd6 15. Bxd6 Qxd6 16. e4 Qc7 17. e5 N6d7 18. f4 Nb6 19. f5 Bd7 20. Nb5 Qc8 21. Nd6 Qd8 22. Qd2 Re7 23. f6 gxf6 24. Rxf6 Be6 25. Qxh6 Nbd7 26. Rf3 Ng6 27. Bxg6 fxg6 28. Qxg6+ Kh8 29. Qh6+ Kg8 30. Rg3+ Rg7 31. Qxg7# 1-0

[Event "POR-ch Women 2018"]
[Site "Braga"]
[Date "2018.09.05"]
[Round "1"]
[White "Oliveira, Alice"]
[Black "Pintor, Ariana"]
[Result "0-1"]
[ECO "B18"]
[WhiteElo "1572"]
[BlackElo "1928"]
[Annotator "NA RC"]
[PlyCount "176"]
[EventDate "2018.09.02"]
[EventType "tourn"]
[EventCountry "POR"]
[SourceTitle "playchess.com"]
[Source "ChessBase"]
[SourceQuality "1"]
[TimeControl "40/5400+30:1800+30"]

1. e4 c6 2. d4 d5 3. Nc3 dxe4 4. Nxe4 Bf5 5. Ng3 Bg6 6. Bc4 e6 7. N1e2 Bd6 8. Nf4 Qc7 9. Nfh5 Bf8 10. c3 Nd7 11. O-O Ngf6 12. f4 O-O-O 13. Nxf6 Nxf6 14. f5 exf5 15. Nxf5 Bxf5 16. Rxf5 Bd6 17. h3 h6 18. Qf3 Rd7 19. Bf4 Bxf4 20. Qxf4 Qb6 21. b4 Re8 22. Re5 Rxe5 23. Qxe5 Qc7 24. Re1 Qxe5 25. Rxe5 Nd5 26. Bxd5 Rxd5 27. Re8+ Kd7 28. Rg8 g6 29. Kf2 Rf5+ 30. Ke2 Rg5 31. Kf2 h5 32. Rh8 Rf5+ 33. Ke2 Rf4 34. g3 Re4+ 35. Kd2 a6 36. Rb8 Kc7 37. Rf8 Re7 38. a4 b6 39. Ra8 Kb7 40. Rf8 a5 41. bxa5 bxa5 42. Rg8 Re6 43. Rf8 Rf6 44. Ke2 Rf5 45. Re8 Kb6 46. Re7 g5 47. Re3 c5 48. dxc5+ Rxc5 49. Kd3 Rd5+ 50. Kc4 Kc6 51. Re8 Rc5+ 52. Kb3 Rd5 53. Kc4 Rf5 54. Re3 f6 55. Re6+ Kd7 56. Re3 Kd6 57. Rd3+ Kc6 58. Re3 h4 59. g4 Rf4+ 60. Kb3 Kc5 61. Rd3 f5 62. gxf5 Rxf5 63. Rd8 Rf3 64. Rg8 Rg3 65. Rg7 Rg2 66. Rg8 Kd6 67. Kc4 g4 68. hxg4 h3 69. Rh8 h2 70. Kb5 Ke5 71. g5 Kf5 72. g6 Kxg6 73. Kxa5 Rg5+ 74. Kb6 Rh5 75. Rxh5 Kxh5 76. a5 h1=Q 77. Ka7 Qc6 78. a6 Qxc3 79. Kb8 Qb4+ 80. Ka8 Qf8+ 81. Kb7 Qe7+ 82. Kb8 Qd8+ 83. Kb7 Qd7+ 84. Ka8 Qc8+ 85. Ka7 Kg6 86. Kb6 Qa8 87. a7 Kf6 88. Ka6 Qc6+ 0-1

[Event "POR-ch Women 2018"]
[Site "Braga"]
[Date "2018.09.05"]
[Round "1"]
[White "Oliveira, Elisa"]
[Black "Silva, Ana Inês"]
[Result "0-1"]
[ECO "C50"]
[WhiteElo "1333"]
[BlackElo "1890"]
[Annotator "NA RC"]
[PlyCount "60"]
[EventDate "2018.09.02"]
[EventType "tourn"]
[EventCountry "POR"]
[SourceTitle "playchess.com"]
[Source "ChessBase"]
[SourceQuality "1"]
[TimeControl "40/5400+30:1800+30"]

1. e4 e5 2. Nf3 Nc6 3. Bc4 Bc5 4. O-O Nf6 5. d3 O-O 6. Be3 Bxe3 7. fxe3 d6 8. Nbd2 Bg4 9. c3 Qd7 10. Qe2 Na5 11. d4 exd4 12. exd4 d5 13. exd5 Nxd5 14. Qe4 Nf6 15. Qc2 Bxf3 16. Rxf3 Nxc4 17. Nxc4 Qd5 18. Ne5 c5 19. Rf5 Qe6 20. dxc5 Nd5 21. Nc4 Nxc3 22. Re5 Qxc4 23. Qxc3 Qxc3 24. bxc3 Rac8 25. Re7 Rxc5 26. Rxb7 a5 27. Rb3 g6 28. Kf2 Rd8 29. a3 Rd2+ 30. Kf1 Rf5+ 0-1

[Event "POR-ch Women 2018"]
[Site "Braga"]
[Date "2018.09.03"]
[Round "2"]
[White "Pintor, Ariana"]
[Black "Pipiras, Filipa Fortuna"]
[Result "1/2-1/2"]
[ECO "C68"]
[WhiteElo "1928"]
[BlackElo "1803"]
[Annotator "NA"]
[PlyCount "88"]
[EventDate "2018.09.02"]
[EventType "tourn"]
[EventCountry "POR"]
[SourceTitle "playchess.com"]
[Source "ChessBase"]
[SourceQuality "1"]
[TimeControl "40/5400+30:1800+30"]

1. e4 {[%emt 0:00:00]} e5 {[%emt 0:00:04]} 2. Nf3 {[%emt 0:00:01]} Nc6 {[%emt 0:00:18]} 3. Bb5 {[%emt 0:00:31]} a6 {[%emt 0:00:34]} 4. Bxc6 {[%emt 0:00:08]} dxc6 {[%emt 0:00:13]} 5. O-O {[%emt 0:00:05]} Bg4 {[%emt 0:02:01]} 6. h3 {[%emt 0:00:07]} Bh5 {[%emt 0:00:48]} 7. d3 {[%emt 0:01:07]} f6 {[%emt 0:01:11]} 8. Be3 {[%emt 0:01:05]} Bd6 {[%emt 0:01:02]} 9. Nbd2 {[%emt 0:03:39]} Ne7 {[%emt 0:04:59]} 10. c3 {[%emt 0:03:26]} c5 {[%emt 0:04:47]} 11. Nb3 {[%emt 0:04:10]} b6 {[%emt 0:02:03]} 12. a4 {[%emt 0:00:38]} a5 {[%emt 0:01:56]} 13. Qe2 {[%emt 0:05:30]} O-O {[%emt 0:02:15]} 14. Rfd1 {[%emt 0:07:40]} Nc6 15. Rac1 Qe7 16. Nbd2 Kh8 17. Nf1 Bf7 18. N3d2 Qd7 19. Ng3 Ne7 20. b3 Be6 21. Ngf1 f5 22. exf5 Nxf5 23. Nc4 Nxe3 24. Qxe3 Rae8 25. Ng3 e4 26. dxe4 Bxc4 27. bxc4 Qxa4 28. Qd3 Bxg3 29. Qxg3 Qc6 30. f3 Rf7 31. Ra1 Qe6 32. Ra4 Qc6 33. Ra3 Qe6 34. Rd5 c6 35. Rd6 Qxc4 36. Rxc6 Qb5 37. Rd6 Qb2 38. Ra4 Ra7 39. Qe5 Raa8 40. Re6 Qc1+ 41. Kh2 Rxe6 42. Qxe6 Qf4+ 43. Kg1 Qc1+ 44. Kh2 Qf4+ 1/2-1/2

[Event "POR-ch Women 2018"]
[Site "Braga"]
[Date "2018.09.03"]
[Round "2"]
[White "Silva, Ana Ines Teixeira D"]
[Black "Silva, Mariana Sofia T"]
[Result "0-1"]
[ECO "B24"]
[WhiteElo "1890"]
[BlackElo "1924"]
[Annotator "NA"]
[PlyCount "65"]
[EventDate "2018.09.02"]
[EventType "tourn"]
[EventCountry "POR"]
[SourceTitle "playchess.com"]
[Source "ChessBase"]
[SourceQuality "1"]
[TimeControl "5400+30"]

1. e4 c5 2. Nc3 Nc6 3. a3 e6 4. Nf3 a6 5. Bc4 b5 6. Ba2 Nf6 7. d3 Qc7 8. h3 Be7 9. Be3 Bb7 10. Qd2 d6 11. O-O O-O 12. Rad1 Rfd8 13. Rfe1 Rac8 14. Ne2 d5 15. exd5 Nxd5 16. Bf4 Nxf4 17. Nxf4 c4 18. Qe3 Bd6 19. Ne2 Ne7 20. d4 Nd5 21. Qd2 c3 22. bxc3 Nxc3 23. Nxc3 Qxc3 24. Ng5 Qxd2 25. Rxd2 Bf4 26. Nxf7 Bxd2 27. Nxd8 Rxd8 28. Rxe6 Bd5 29. Bxd5 Rxd5 30. Rxa6 Rxd4 31. Rb6 Rc4 32. Rd6 Bf4 33. a4 0-1

[Event "POR-ch Women 2018"]
[Site "Braga"]
[Date "2018.09.03"]
[Round "2"]
[White "Soares, Sara Joana De Moura"]
[Black "Oliveira, Maria Elisa Ramos M"]
[Result "1-0"]
[ECO "C54"]
[WhiteElo "1431"]
[BlackElo "1333"]
[Annotator "NA"]
[PlyCount "71"]
[EventDate "2018.09.02"]
[EventType "tourn"]
[EventCountry "POR"]
[SourceTitle "playchess.com"]
[Source "ChessBase"]
[SourceQuality "1"]
[TimeControl "40/5400+30:1800+30"]

1. e4 e5 2. Nf3 Nc6 3. Bc4 Bc5 4. c3 Nf6 5. d4 exd4 6. e5 d5 7. Bb5 Ne4 8. cxd4 Bb6 9. Nc3 Bd7 10. Be3 O-O 11. Be2 Be6 12. O-O f6 13. Bb5 fxe5 14. Bxc6 bxc6 15. Nxe5 Qe8 16. Rc1 Qc8 17. Nxc6 Rf7 18. Ne5 Rf8 19. f3 Nf6 20. b3 Bh3 21. gxh3 Qxh3 22. Qe2 Rae8 23. Qg2 Qh5 24. Bf2 Qf5 25. Rfd1 Nh5 26. Qg4 Rxe5 27. dxe5 Bxf2+ 28. Kh1 Qxf3+ 29. Qxf3 Rxf3 30. Nxd5 c5 31. e6 Rf8 32. Nc7 Bh4 33. Rxc5 Nf4 34. Re5 Be7 35. Rd7 Nh3 36. Rxe7 1-0

[Event "POR-ch Women 2018"]
[Site "Braga"]
[Date "2018.09.03"]
[Round "2"]
[White "Areal, Maria Beatriz Moura"]
[Black "Oliveira, Maria Alice Ramos M"]
[Result "1-0"]
[ECO "B40"]
[WhiteElo "1051"]
[BlackElo "1572"]
[Annotator "NA"]
[PlyCount "73"]
[EventDate "2018.09.02"]
[EventType "tourn"]
[EventCountry "POR"]
[SourceTitle "playchess.com"]
[Source "ChessBase"]
[SourceQuality "1"]
[TimeControl "40/5400+30:1800+30"]

1. e4 {[%emt 0:00:25]} c5 {[%emt 0:00:00]} 2. Nf3 {[%emt 0:01:18]} e6 {[%emt 0:00:00]} 3. Nc3 {[%emt 0:00:13]} a6 {[%emt 0:00:00]} 4. Be2 {[%emt 0:00:19]} Qc7 {[%emt 0:10:52]} 5. O-O {[%emt 0:04:16]} Nc6 {[%emt 0:03:04]} 6. d3 {[%emt 0:04:41]} Nf6 {[%emt 0:02:45]} 7. Be3 {[%emt 0:00:33]} Be7 {[%emt 0:15:03]} 8. Qd2 {[%emt 0:04:00]} b5 9. Bd1 O-O 10. Ne2 d5 11. c3 dxe4 12. dxe4 Nxe4 13. Qc2 Nf6 14. Ng3 Bb7 15. Qe2 Rad8 16. Bc2 h6 17. Rad1 Rxd1 18. Rxd1 Rd8 19. Re1 Ne5 20. Bf4 Nxf3+ 21. Qxf3 Qb6 22. Qe2 c4 23. Bb1 Bd6 24. Bxd6 Qxd6 25. Bc2 Qd2 26. Rd1 Qxd1+ 27. Bxd1 Rd7 28. h3 Kf8 29. Bc2 Bc6 30. Ne4 Nd5 31. Nc5 Rd8 32. Nxa6 Nf4 33. Qe3 Nxg2 34. Qc5+ Kg8 35. Qxc6 Nf4 36. Qc7 Rd2 37. Qc8+ 1-0

[Event "POR-ch Women 2018"]
[Site "Braga"]
[Date "2018.09.03"]
[Round "3"]
[White "Silva, Mariana Sofia T"]
[Black "Pintor, Ariana"]
[Result "0-1"]
[ECO "B12"]
[WhiteElo "1924"]
[BlackElo "1928"]
[Annotator "NA RC"]
[PlyCount "76"]
[EventDate "2018.09.02"]
[EventType "tourn"]
[EventCountry "POR"]
[SourceTitle "playchess.com"]
[Source "ChessBase"]
[SourceQuality "1"]
[TimeControl "5400+30"]

{[%evp 13,63,63,46,32767,67,82,85,67,107,110,87,32767,122,95,97,103,124,114,139,108,108,60,66,58,32767,126,223,106,195,102,100,85,95,54,87,-13,-5,-24,0,0,0,-241,-246,32767,-161,-243,-201,-237,-260,-283,-253,-276]} 1. e4 {[%emt 0:00:13]} c6 {[%emt 0:00:00]} 2. d4 {[%emt 0:00:08]} d5 {[%emt 0:00:00]} 3. e5 {[%emt 0:00:05]} Bf5 {[%emt 0:00:00]} 4. h4 {[%emt 0:00:09]} h6 {[%emt 0:04:04]} 5. g4 {[%emt 0:00:19]} Bc8 {[%emt 0:00:28] B12: Caro-Kann (Vorstoß-Variante)} (5... Be4 6. f3 Bh7 7. e6 Qd6 8. exf7+ Kxf7 9. Bd3 Bxd3 10. Qxd3 Nd7 11. h5 e5 12. f4 exd4 13. Qf5+ Ngf6 14. g5 hxg5 15. fxg5 Qg3+ {0-1 (40) Fedoseev,V (2724)-Tabatabaei,M (2577) Moscow 2018}) 6. Nc3 {[%emt 0:04:13]} e6 {[%emt 0:00:36]} 7. Be3 $146 {[%emt 0:03:58]} ({Vorgänger:} 7. f4 c5 8. dxc5 Bxc5 9. Nf3 a6 10. Bd3 Ne7 11. Qe2 Nbc6 12. Bd2 Bd7 13. h5 {1-0 (43) Figar,N (1802)-Farias,S (1524) Mar del Plata 2012}) 7... Nd7 {[%emt 0:01:24]} 8. f4 {[%emt 0:09:35]} Ne7 {[%emt 0:07:37]} 9. h5 {[%emt 0:04:12]} a6 {[%emt 0:02:03]} 10. Nf3 {[%emt 0:04:31]} b6 {[%emt 0:05:00]} 11. Ne2 {[%emt 0:06:43]} c5 {[%emt 0:01:56]} 12. c3 {[%emt 0:00:13]} Bb7 {[%emt 0:00:56]} 13. Ng3 {[%emt 0:02:03]} Nc6 {[%emt 0:02:31]} 14. Bd3 {[%emt 0:12:57]} c4 {[%emt 0:08:03]} 15. Bc2 {[%emt 0:00:41]} Qc7 {[%emt 0:00:37]} 16. Qe2 {[%emt 0:06:56]} O-O-O {[%emt 0:02:36]} 17. b3 {[%emt 0:05:22]} Ba3 {[%emt 0:08:13]} 18. Rb1 {[%emt 0:02:12]} cxb3 {[%emt 0:05:57]} 19. axb3 {[%emt 0:01:14]} Na7 {[%emt 0:03:10] [#]} (19... Be7 $16 {ist eine bessere Verteidigung.}) 20. Qd3 {[%emt 0:03:21]} (20. b4 $1 $18) 20... Nb5 {[%emt 0:01:47] [#]} (20... Be7 $16 {is a better defense.}) 21. Bd2 {[%emt 0:01:40]} (21. b4 $1 $18) 21... Be7 {[%emt 0:00:45]} 22. Bd1 {[%emt 0:02:49]} Kb8 {[%emt 0:01:16]} 23. Be2 {[%emt 0:03:25]} Rc8 {[%emt 0:01:17]} 24. c4 {[%emt 0:05:05]} (24. Kf2 $16) 24... dxc4 {[%emt 0:01:28]} 25. bxc4 {[%emt 0:00:05]} Na3 {[%emt 0:00:17]} 26. Rc1 {[%emt 0:00:32] [#]} Nxc4 $1 {[%emt 0:01:06]} 27. Kf2 $2 {[%emt 0:06:35]} (27. Rxc4 $11 {and White is okay.} Qxc4 28. Qxc4 Rxc4 29. Bxc4 Bxf3 30. O-O Bxg4 31. Bxa6) 27... b5 {[%emt 0:02:38]} 28. Qb1 {[%emt 0:05:24]} Bd5 {[%emt 0:03:17]} (28... Ndb6 $142 29. Ba5 Qd7 30. Bxb6 Nxb6) 29. Bb4 {[%emt 0:04:19]} (29. Bxc4 $17 {keeps fighting.} Bxc4 30. Bb4 Bxb4 31. Qxb4) 29... Ndb6 {[%emt 0:04:24]} 30. Rhd1 {[%emt 0:02:06]} Rhd8 {[%emt 0:02:07]} 31. Ba5 {[%emt 0:02:45]} Qb7 {[%emt 0:01:54]} 32. Bb4 $19 {[%emt 0:00:31]} Na4 {[%emt 0:04:35]} 33. Bxe7 {[%emt 0:00:49]} Qxe7 {[%emt 0:00:07]} 34. Ne4 {[%emt 0:01:08]} Qa3 {[%emt 0:02:34]} 35. Nfd2 {[%emt 0:00:39]} Qe3+ {[%emt 0:01:01]} 36. Kf1 {[%emt 0:00:19]} Qxf4+ {[%emt 0:00:48]} 37. Kg1 {[%emt 0:00:27]} Nxd2 {[%emt 0:00:43]} 38. Nxd2 {[%emt 0:00:05]} Qg3+ {[%emt 0:00:23]} 0-1

[Event "POR-ch Women 2018"]
[Site "Braga"]
[Date "2018.09.04"]
[Round "3"]
[White "Pipiras, Filipa Fortuna"]
[Black "Silva, Ana Ines Teixeira D"]
[Result "1-0"]
[ECO "A57"]
[WhiteElo "1803"]
[BlackElo "1890"]
[Annotator "NA RC"]
[PlyCount "91"]
[EventDate "2018.09.02"]
[EventType "tourn"]
[EventCountry "POR"]
[SourceTitle "playchess.com"]
[Source "ChessBase"]
[SourceQuality "1"]
[TimeControl "5400+30"]

{[%evp 11,77,52,67,59,84,61,57,32767,69,32767,44,-30,56,0,54,31,69,87,89,71,85,56,52,65,60,50,60,48,80,0,27,32767,72,31,32767,32767,152,100,151,32767,245,236,239,236,287,300,32767,32767,32767,32767,32767,32767,32767,32767,383,32767,32767,32767,418,398,364,428,448,449,457,482,739,844]} 1. d4 Nf6 {[%emt 0:00:10]} 2. c4 {[%emt 0:00:13]} c5 {[%emt 0:00:07]} 3. d5 {[%emt 0:00:48]} b5 {[%emt 0:00:06]} 4. Nf3 {[%emt 0:00:41]} bxc4 {[%emt 0:04:57]} 5. Nc3 {[%emt 0:02:18]} g6 {[%emt 0:01:56]} 6. e4 {[%emt 0:00:50]} d6 {[%emt 0:00:18]} 7. Bxc4 {[%emt 0:00:56]} Bg7 {[%emt 0:02:48]} 8. O-O {[%emt 0:01:42]} O-O {[%emt 0:00:33]} 9. Qc2 {[%emt 0:04:55]} Nbd7 {[%emt 0:03:20] LiveBook: 54 Games} 10. h3 {[%emt 0:01:09]} Rb8 {[%emt 0:02:55] A57: Benko/Volga Gambit} 11. Bf4 {[%emt 0:02:38]} (11. Re1 Nh5 12. Be2 Ne5 13. Nxe5 Bxe5 14. Bxh5 gxh5 15. Bh6 Re8 16. Qd2 Kh8 17. Bf4 Bd4 18. Be3 {0-1 (63) Dreev,A (2644)-Perunovic,M (2622) Berlin 2015}) 11... Nb6 {[%emt 0:12:15]} (11... Nh5 $1 $11 12. Bg5 f6) 12. Be2 {[%emt 0:01:16]} Nfd7 {[%emt 0:04:07]} 13. Rfe1 $146 {[%emt 0:04:03]} ({Predecessor:} 13. Rfd1 h6 14. a4 f5 15. a5 fxe4 16. Qxe4 Na8 17. Bc1 Qe8 18. Bd3 {1-0 (30) Szymczak,Z (2365)-Ljubic,J (2165) Werfen 1994}) 13... Bb7 {[%emt 0:05:33]} 14. Rad1 {[%emt 0:01:21]} a6 {[%emt 0:03:33]} 15. Bh2 {[%emt 0:07:29]} Qc7 {[%emt 0:04:36]} 16. Bf1 {[%emt 0:12:02]} c4 {[%emt 0:08:22]} 17. Bf4 {[%emt 0:07:46]} Rfc8 {[%emt 0:07:18]} 18. Qc1 {[%emt 0:03:17]} Ba8 {[%emt 0:07:48]} 19. Bh6 {[%emt 0:03:50]} Bh8 {[%emt 0:00:59]} 20. Bf4 {[%emt 0:00:30]} ({White should play} 20. Be3 $16) 20... Nc5 {[%emt 0:02:22]} 21. Qc2 {[%emt 0:13:26]} Nbd7 {[%emt 0:08:59]} 22. Rb1 {[%emt 0:05:53]} Nf6 {[%emt 0:03:44]} 23. Nd2 {[%emt 0:01:56]} Nh5 {[%emt 0:07:21]} (23... Nd3 $142) 24. Bh2 {[%emt 0:01:04]} Nd7 {[%emt 0:09:56]} 25. Bxc4 {[%emt 0:00:58]} Rb4 {[%emt 0:00:32]} (25... Bd4 $16 {is a better defense.}) 26. Bxa6 {[%emt 0:01:38]} Rcb8 {[%emt 0:00:28]} 27. Be2 {[%emt 0:01:09]} Nhf6 {[%emt 0:01:16]} 28. a3 {[%emt 0:00:37]} R4b6 {[%emt 0:00:38]} 29. Nc4 {[%emt 0:00:53]} Rb3 {[%emt 0:00:32]} 30. Nd2 {[%emt 0:00:32]} R3b6 {[%emt 0:00:14]} 31. Rec1 {[%emt 0:00:28]} Qd8 {[%emt 0:01:17]} 32. b4 {[%emt 0:00:48]} Ne8 {[%emt 0:00:25]} 33. Nc4 {[%emt 0:01:08]} R6b7 {[%emt 0:00:08]} 34. Qd2 {[%emt 0:03:12]} Nb6 {[%emt 0:00:30]} 35. Nxb6 {[%emt 0:03:14]} Qxb6 {[%emt 0:00:04]} 36. a4 {[%emt 0:01:08]} Bd4 {[%emt 0:00:15]} 37. Bg3 {[%emt 0:00:22]} Nf6 {[%emt 0:00:59]} 38. Bd3 {[%emt 0:00:50]} Ra7 $18 {[%emt 0:01:00]} (38... Qa7 $142 39. Nb5 Rxb5 40. axb5 Rd8) 39. a5 {[%emt 0:00:27]} Qd8 {[%emt 0:00:23]} 40. Nb5 {[%emt 0:00:17]} Rxb5 {[%emt 0:00:42]} 41. Bxb5 {[%emt 0:00:14]} Rb7 {[%emt 0:00:10]} 42. Bc6 {[%emt 0:00:08]} Bxf2+ {[%emt 0:00:25]} 43. Bxf2 {[%emt 0:01:09]} Nxe4 {[%emt 0:00:20]} 44. Qd4 {[%emt 0:00:12]} Nxf2 {[%emt 0:00:28]} 45. Bxb7 {[%emt 0:00:11]} Nxh3+ {[%emt 0:00:13]} 46. gxh3 {[%emt 0:00:07]} 1-0

[Event "POR-ch Women 2018"]
[Site "Braga"]
[Date "2018.09.03"]
[Round "3"]
[White "Oliveira, Maria Alice Ramos M"]
[Black "Oliveira, Maria Elisa Ramos M"]
[Result "1-0"]
[ECO "C00"]
[WhiteElo "1572"]
[BlackElo "1333"]
[Annotator "NA RC"]
[PlyCount "45"]
[EventDate "2018.09.02"]
[EventType "tourn"]
[EventCountry "POR"]
[SourceTitle "playchess.com"]
[Source "ChessBase"]
[SourceQuality "1"]
[TimeControl "5400+30"]

1. e4 e6 2. Qe2 e5 3. Nf3 Nc6 4. c3 Be7 5. d4 d6 6. d5 Nb8 7. g3 c6 8. c4 f5 9. Nc3 Nf6 10. Qd3 g6 11. Bg2 a5 12. O-O Ng4 13. h3 Nf6 14. Be3 fxe4 15. Nxe4 Nxe4 16. Nxe5 Nxg3 17. Nxg6 Nxf1 18. Nxh8 Nxe3 19. fxe3 Bf6 20. Qxh7 Bxh8 21. Qxh8+ Ke7 22. Qg7+ Ke8 23. Rf1 1-0

[Event "POR-ch Women 2018"]
[Site "Braga"]
[Date "2018.09.03"]
[Round "3"]
[White "Areal, Maria Beatriz Moura"]
[Black "Soares, Sara Joana De Moura"]
[Result "0-1"]
[ECO "C54"]
[WhiteElo "1051"]
[BlackElo "1431"]
[Annotator "NA RC"]
[PlyCount "94"]
[EventDate "2018.09.02"]
[EventType "tourn"]
[EventCountry "POR"]
[SourceTitle "playchess.com"]
[Source "ChessBase"]
[SourceQuality "1"]
[TimeControl "5400+30"]

1. e4 {[%emt 0:00:00]} e5 {[%emt 0:00:00]} 2. Nf3 {[%emt 0:00:14]} Nc6 {[%emt 0:00:00]} 3. Bc4 {[%emt 0:00:28]} Bc5 {[%emt 0:00:09]} 4. c3 {[%emt 0:00:14]} Nf6 {[%emt 0:00:17]} 5. d3 {[%emt 0:00:12]} d6 {[%emt 0:00:20]} 6. Nbd2 {[%emt 0:00:15]} a6 {[%emt 0:00:15]} 7. Bb3 O-O {[%emt 0:00:35]} 8. Nf1 {[%emt 0:02:16]} Nh5 {[%emt 0:03:38]} 9. Ne3 {[%emt 0:00:25]} Ba7 {[%emt 0:01:21]} 10. Bc2 {[%emt 0:02:56]} Nf4 {[%emt 0:01:19]} 11. O-O {[%emt 0:01:22]} Be6 {[%emt 0:03:26]} 12. Re1 {[%emt 0:10:32]} Qf6 {[%emt 0:05:16]} 13. Nf1 {[%emt 0:05:04]} Rad8 {[%emt 0:06:08]} 14. Ng3 {[%emt 0:03:22]} Bg4 {[%emt 0:01:32]} 15. h3 {[%emt 0:03:21]} Nxh3+ {[%emt 0:02:49]} 16. gxh3 {[%emt 0:02:28]} Bxf3 {[%emt 0:00:08]} 17. Qd2 {[%emt 0:01:05]} Qh4 {[%emt 0:01:01]} 18. Kh2 {[%emt 0:02:53]} Bg4 {[%emt 0:01:55]} 19. Rh1 {[%emt 0:01:51]} Qxh3+ {[%emt 0:00:17]} 20. Kg1 {[%emt 0:00:11]} Qxg3+ {[%emt 0:00:03]} 21. Kf1 {[%emt 0:00:53]} Bh3+ {[%emt 0:00:43]} 22. Ke1 {[%emt 0:02:09]} Qg2 {[%emt 0:00:22]} 23. Rxh3 {[%emt 0:00:56]} Qxh3 {[%emt 0:00:02]} 24. Kd1 {[%emt 0:01:30]} Qf1+ {[%emt 0:01:03]} 25. Qe1 {[%emt 0:00:10]} Qxf2 {[%emt 0:00:16]} 26. Qxf2 {[%emt 0:00:16]} Bxf2 {[%emt 0:00:02]} 27. Ke2 {[%emt 0:00:24]} Ba7 {[%emt 0:00:10]} 28. Bd2 {[%emt 0:00:08]} f5 {[%emt 0:00:50]} 29. Bb3+ {[%emt 0:00:34]} Kh8 {[%emt 0:00:10]} 30. Bg5 {[%emt 0:00:34]} Rde8 {[%emt 0:00:19]} 31. Rh1 {[%emt 0:00:42]} f4 {[%emt 0:01:00]} 32. Kf3 {[%emt 0:00:31]} h6 {[%emt 0:00:32]} 33. Bh4 {[%emt 0:01:15]} Na5 {[%emt 0:03:47]} 34. Bd1 {[%emt 0:01:26]} b5 {[%emt 0:00:36]} 35. b4 {[%emt 0:00:12]} Nb7 {[%emt 0:00:02]} 36. Bb3 {[%emt 0:00:09]} c6 {[%emt 0:02:07]} 37. Bg5 {[%emt 0:01:41]} Nd8 {[%emt 0:01:02]} 38. a3 {[%emt 0:03:44]} Ne6 {[%emt 0:00:07]} 39. Bh4 {[%emt 0:00:11]} g5 {[%emt 0:02:12]} 40. Be1 {[%emt 0:00:17]} Kg7 {[%emt 0:00:34]} 41. Bd1 {[%emt 0:00:54]} Kg6 {[%emt 0:00:15]} 42. Be2 {[%emt 0:01:33]} h5 {[%emt 0:00:23]} 43. Bf1 {[%emt 0:00:11]} g4+ {[%emt 0:01:00]} 44. Kg2 {[%emt 0:00:18]} f3+ {[%emt 0:00:07]} 45. Kg3 {[%emt 0:00:18]} Kg5 {[%emt 0:01:56]} 46. Bd2+ {[%emt 0:00:18]} Nf4 {[%emt 0:00:06]} 47. Be1 {[%emt 0:01:11]} Rh8 {[%emt 0:00:45]} 0-1